bitfinex/quotes_ETHUSD_20251217
["timestamp","ask_amount","ask_price","bid_price","bid_amount"]
[1765959902097,0.8089,2941.1,2941.0,0.002]
[1765959903777,1.2297768,2941.1,2941.0,0.002]
[1765959903984,0.8089,2941.1,2941.0,0.002]
[1765959908198,4.2089884,2941.1,2941.0,0.002]
[1765959908376,0.4792,2941.0,2940.9,0.002]
[1765959911115,3.87940401,2941.0,2940.9,0.002]
[1765959911418,4.60744278,2941.0,2940.9,0.002]
[1765959913118,1.20723877,2941.0,2940.9,0.002]
[1765959913296,0.4792,2941.0,2940.9,0.002]
[1765959913987,3.87940401,2941.0,2940.9,0.002]
[1765959915398,0.4792,2941.0,2940.9,0.002]
[1765959915613,3.87940401,2941.0,2940.9,0.002]
[1765959916924,4.34378424,2941.0,2940.9,0.002]
[1765959917096,5.58877865,2941.0,2940.9,0.002]
[1765959918208,0.8046,2940.6,2940.5,0.001]
[1765959922231,4.20526653,2940.6,2940.5,0.001]
[1765959923337,4.20526653,2940.6,2940.1,0.002]
[1765959923338,0.4824,2940.4,2940.1,0.002]
[1765959923511,4.65272758,2940.4,2940.1,0.002]
[1765959923710,1.62780606,2940.4,2940.1,0.002]
[1765959925048,5.02870389,2940.4,2940.1,0.002]
[1765959925750,0.9451,2939.8,2939.3,0.001]
[1765959927228,4.34669194,2939.8,2939.3,0.001]
[1765959927449,5.08585923,2939.8,2939.3,0.001]
[1765959928253,9.25618681,2939.8,2939.3,0.001]
[1765959928456,0.4808,2939.4,2939.3,0.001]
[1765959932378,8.05318242,2939.4,2939.3,0.001]
[1765959932528,8.05318242,2939.4,2939.1,0.002]
[1765959932529,0.9404,2939.2,2939.1,0.002]
[1765959932737,2.13188373,2939.2,2939.1,0.002]
[1765959932940,0.9495,2938.0,2937.9,3.40579182]
[1765959933135,0.9495,2938.0,2937.9,0.002]
[1765959933635,0.9495,2938.0,2937.9,3.40579182]
[1765959933847,0.1823,2938.7,2938.1,0.1845]
[1765959934139,0.1823,2938.7,2937.9,3.40579182]
[1765959934140,0.4769,2938.0,2937.9,3.40579182]
[1765959934342,0.9356,2938.0,2937.9,0.002]
[1765959935959,0.539,2938.5,2937.9,0.002]
[1765959936267,0.9528,2938.0,2937.9,0.002]
[1765959937272,0.9532,2938.0,2937.9,0.002]
[1765959937677,1.80590233,2938.0,2937.9,0.002]
[1765959938172,0.9532,2938.0,2937.9,0.002]
[1765959942467,0.4941,2938.0,2937.9,0.002]
[1765959942670,0.9532,2938.0,2937.9,0.002]
[1765959950654,0.4941,2938.0,2937.9,0.002]
[1765959951253,0.4591,2938.4,2937.9,0.002]
[1765959952578,0.001,2938.5,2937.9,4.83980528]
[1765959952781,0.001,2938.5,2938.2,4.63782758]
[1765959952978,0.001,2938.5,2938.4,0.9651]
[1765959953984,0.4675,2938.5,2938.4,3.40321263]
[1765959954148,0.001,2938.5,2938.4,3.90081263]
[1765959954884,0.001,2938.5,2938.4,5.19937665]
[1765959960199,0.001,2938.5,2938.4,4.73187665]
[1765959960786,0.001,2938.5,2938.4,3.40321263]
[1765959960787,0.4675,2938.5,2938.4,3.40321263]
[1765959960978,0.9335,2938.5,2938.4,3.40321263]
[1765959964598,0.4675,2938.5,2938.4,3.40321263]
[1765959965500,0.001,2938.5,2938.4,3.40321263]
[1765959965668,0.001,2938.5,2938.4,3.88571263]
[1765959965874,0.001,2938.5,2938.4,9.72882608]
[1765959966674,0.001,2938.5,2938.4,5.08613568]
[1765959966876,0.4547,2938.5,2938.4,3.40321263]
[1765959967183,0.9083,2938.5,2938.4,3.40321263]
[1765959967504,0.0351,2938.2,2938.1,3.40356012]
[1765959967693,0.4537,2938.0,2937.9,0.002]
[1765959967876,0.9073,2938.0,2937.9,3.40579182]
[1765959968078,0.9073,2938.0,2937.9,0.002]
[1765959968594,0.9073,2938.0,2937.9,3.40579182]
[1765959968979,0.9073,2938.0,2937.9,0.002]
[1765959970985,1.33838716,2938.0,2937.9,0.002]
[1765959971186,0.9073,2938.0,2937.9,0.002]
[1765959972281,4.31097597,2938.0,2937.9,0.002]
[1765959972480,0.9073,2938.0,2937.9,0.002]
[1765959979319,4.31097597,2938.0,2937.9,0.002]
[1765959979504,1.73264274,2938.0,2937.9,0.002]
[1765959980013,5.13631871,2938.0,2937.9,0.002]
[1765959980511,1.73264274,2938.0,2937.9,0.002]
[1765959981278,0.9073,2938.0,2937.9,0.002]
[1765959981711,4.31097597,2938.0,2937.9,0.002]
[1765959981910,0.9073,2938.0,2937.9,0.002]
[1765959984982,0.4537,2938.0,2937.9,0.002]
[1765959985176,0.9073,2938.0,2937.9,0.002]
[1765959989404,1.33837725,2938.0,2937.9,0.002]
[1765959989604,0.9073,2938.0,2937.9,0.002]
[1765959991807,5.08592019,2938.0,2937.9,0.002]
[1765959993719,8.48959616,2938.0,2937.9,0.002]
[1765959996022,0.9073,2938.0,2937.9,0.002]
[1765959998899,0.001,2938.5,2937.9,0.4578]
[1765959998900,0.5005,2938.5,2937.9,0.4578]
[1765959999604,0.9378,2938.0,2937.9,0.002]
[1765959999818,0.4551,2938.0,2937.9,0.002]
[1765959999985,0.4827,2938.3,2937.9,0.002]
[1765960000186,0.4995,2938.2,2937.9,0.002]
[1765960001329,0.5005,2938.5,2937.9,0.002]
[1765960001505,0.5005,2938.5,2937.9,0.4929]
[1765960001710,0.001,2938.5,2937.9,0.4929]
[1765960002439,0.001,2938.5,2938.0,7.29825194]
[1765960002736,0.5005,2938.5,2938.0,7.29825194]
[1765960003512,0.001,2938.5,2938.4,0.4558]
[1765960003717,0.001,2938.5,2938.4,0.9467]
[1765960003920,0.001,2938.5,2938.4,0.4558]
[1765960004434,0.001,2938.5,2938.4,3.85901263]
[1765960005434,0.4398,2938.5,2938.4,3.40321263]
[1765960005622,0.4398,2938.5,2938.1,3.5986443]
[1765960005935,0.4394,2938.3,2938.2,3.40339086]
[1765960006234,0.9377,2938.0,2937.9,0.002]
[1765960010442,0.4995,2938.4,2937.9,0.002]
[1765960010745,0.4995,2938.3,2937.9,0.002]
[1765960011311,0.4388,2938.0,2937.9,0.002]
[1765960011582,0.9377,2938.0,2937.9,0.002]
[1765960012249,0.4388,2938.0,2937.9,0.002]
[1765960012950,0.4989,2938.2,2937.9,0.002]
[1765960013324,0.001,2938.5,2937.9,0.002]
[1765960013546,0.4995,2938.3,2937.9,0.002]
[1765960015054,0.001,2938.5,2937.9,0.4929]
[1765960015263,0.5005,2938.5,2937.9,0.4929]
[1765960015471,0.5005,2938.5,2937.9,0.002]
[1765960015774,0.4995,2938.4,2937.9,0.002]
[1765960015934,0.4995,2938.3,2937.9,0.002]
[1765960016932,0.9377,2938.0,2937.9,0.002]
[1765960017430,0.4388,2938.0,2937.9,0.002]
[1765960017657,0.4989,2938.2,2937.9,0.4578]
[1765960018045,0.4989,2938.2,2937.9,0.002]
[1765960018761,0.4394,2938.0,2937.9,0.002]
[1765960019770,0.9377,2938.0,2937.9,0.002]
[1765960021246,1.44933202,2938.0,2937.9,0.002]
[1765960023878,0.4394,2938.0,2937.9,0.002]
[1765960024170,0.9377,2938.0,2937.9,0.002]
[1765960027888,4.34137597,2938.0,2937.9,0.002]
[1765960030849,4.8057562,2938.0,2937.9,0.002]
[1765960031049,0.4507,2937.8,2936.8,3.40503172]
[1765960031250,0.4288,2937.1,2937.0,3.40475065]
[1765960031552,0.4505,2937.3,2937.0,3.86705065]
[1765960032066,0.4291,2937.2,2937.1,3.40469843]
[1765960032461,0.4505,2937.3,2937.0,3.4048073]
[1765960032774,0.4291,2937.1,2937.0,3.4048073]
[1765960033965,0.4291,2937.1,2936.7,6.81236536]
[1765960034280,0.4507,2937.8,2937.0,0.4623]
[1765960034480,0.4507,2937.7,2936.7,11.31218097]
[1765960034688,0.4507,2937.7,2936.7,8.44599829]
[1765960035263,0.4507,2937.7,2936.7,8.90429829]
[1765960035978,0.4507,2937.6,2936.7,8.90429829]
[1765960036355,0.4507,2937.6,2936.9,0.4583]
[1765960037278,0.4507,2937.6,2937.0,0.4603]
[1765960038196,0.4288,2937.2,2937.1,3.40471894]
[1765960038378,0.41460163,2937.2,2937.1,3.40471894]
[1765960038985,0.4505,2937.5,2937.1,3.86701894]
[1765960043805,0.4505,2937.5,2937.1,4.32531894]
[1765960043983,0.4505,2937.5,2937.1,3.86701894]
[1765960044907,0.4505,2937.5,2937.1,7.27173788]
[1765960045072,0.4515,2937.5,2937.1,4.64022273]
[1765960045268,0.4515,2937.5,2937.1,3.86701894]
[1765960046610,0.4515,2937.5,2937.1,3.40471894]
[1765960046772,0.415,2937.2,2937.1,3.40471894]
[1765960047391,0.415,2937.2,2937.0,6.81164998]
[1765960047587,0.4515,2937.5,2937.1,0.4623]
[1765960047794,0.4515,2937.5,2937.1,0.9206]
[1765960048491,0.4515,2937.5,2937.1,0.4623]
[1765960049686,0.415,2937.3,2937.2,3.40460302]
[1765960049904,0.4515,2937.5,2937.1,3.4046649]
[1765960050105,0.415,2937.2,2937.1,3.4046649]
[1765960050269,0.4515,2937.5,2937.1,4.54812309]
[1765960050470,0.415,2937.2,2937.1,4.08582309]
[1765960051065,0.415,2937.2,2937.1,0.68115819]
[1765960051066,0.8652,2937.2,2937.1,0.68115819]
[1765960051271,0.8652,2937.1,2937.0,0.002]
[1765960054208,0.4148,2937.1,2937.0,0.002]
[1765960055300,0.4504,2937.3,2937.0,0.4783]
[1765960055881,0.4504,2937.3,2937.0,0.002]
[1765960056095,0.4682,2937.1,2937.0,0.002]
[1765960056284,0.3975,2937.4,2937.0,0.002]
[1765960057809,0.001,2937.5,2937.0,0.4608]
[1765960057986,0.4528,2937.4,2937.1,3.40471894]
[1765960058187,0.0045,2937.1,2937.0,3.40678852]
[1765960058387,0.4573,2937.1,2937.0,3.40678852]
[1765960058610,0.4573,2937.1,2937.0,0.002]
[1765960059321,0.4573,2937.1,2937.0,3.40683486]
[1765960059486,0.4573,2937.1,2937.0,0.002]
[1765960061099,0.0045,2937.1,2937.0,0.002]
[1765960061490,0.5024,2937.1,2937.0,0.002]
[1765960062115,0.4989,2937.5,2937.1,3.40471894]
[1765960062314,0.4979,2937.4,2937.1,3.40471894]
[1765960062913,0.4979,2937.4,2937.0,3.40678875]
[1765960063817,0.3681,2937.1,2937.0,3.40678875]
[1765960064133,0.3681,2937.1,2937.0,0.002]
[1765960065114,0.4979,2937.4,2937.0,0.4983]
[1765960065318,0.3681,2937.1,2937.0,0.002]
[1765960066415,0.001,2937.5,2937.4,0.4963]
[1765960066620,0.001,2937.5,2937.4,0.9827]
[1765960066798,0.001,2937.5,2937.2,0.4864]
[1765960066998,0.4989,2937.5,2937.0,1.75723016]
[1765960067201,0.4989,2937.5,2937.1,1.19720825]
[1765960068294,0.4989,2937.5,2937.2,6.80920604]
[1765960068513,0.001,2937.5,2937.2,6.80920604]
[1765960068886,0.001,2937.5,2937.2,7.29560604]
[1765960069642,0.001,2937.5,2937.4,0.4963]
[1765960071019,0.001,2937.5,2937.4,3.90067121]
[1765960072622,0.001,2937.5,2937.4,4.831547]
[1765960072823,0.001,2937.5,2937.4,4.86559071]
[1765960073124,0.001,2937.5,2937.4,4.831547]
[1765960073324,0.001,2937.5,2937.4,5.370547]
[1765960073898,0.001,2937.5,2937.4,25.11662472]
[1765960074100,0.001,2937.5,2937.4,25.58100495]
[1765960074519,0.001,2937.5,2937.4,20.77649416]
[1765960074727,0.001,2937.5,2937.4,12.74346216]
[1765960075101,0.001,2937.5,2937.4,9.89248116]
[1765960075306,0.001,2937.5,2937.4,10.43148116]
[1765960076704,0.001,2937.5,2937.4,9.48697716]
[1765960076919,0.001,2937.5,2937.4,10.02597716]
[1765960077325,0.001,2937.5,2937.4,5.83492723]
[1765960077510,0.001,2937.5,2937.4,5.84520437]
[1765960079158,0.001,2937.5,2937.4,5.30620437]
[1765960079436,0.001,2937.5,2937.4,5.84520437]
[1765960079936,0.001,2937.5,2937.4,5.370547]
[1765960081735,0.001,2937.5,2937.4,5.38082414]
[1765960082836,0.001,2937.5,2937.4,5.370547]
[1765960083044,0.001,2937.5,2937.4,4.43967121]
[1765960083247,0.4619,2937.5,2937.2,3.4045226]
[1765960083431,0.4839,2937.3,2937.2,3.4045226]
[1765960083942,0.4839,2937.3,2937.1,3.40671894]
[1765960084714,0.4839,2937.3,2937.1,3.94571894]
[1765960085046,0.4619,2937.5,2937.1,3.40671894]
[1765960085047,0.0048,2937.2,2937.1,3.40671894]
[1765960087816,0.4805,2937.2,2937.1,3.40671894]
[1765960088014,0.4805,2937.2,2937.1,0.002]
[1765960091824,0.4815,2937.2,2937.1,0.002]
[1765960099424,8.06524412,2937.2,2937.1,0.002]
[1765960099752,8.92566853,2937.2,2937.1,0.002]
[1765960101460,9.39004876,2937.2,2937.1,0.002]
[1765960101826,0.4646,2936.1,2936.0,0.9894389]
[1765960102028,5.1194411,2936.1,2936.0,0.9894389]
[1765960102245,9.86442631,2936.1,2936.0,0.9894389]
[1765960102449,9.86442631,2936.1,2934.7,0.002]
[1765960102450,0.8262,2934.8,2934.7,0.002]
[1765960102633,0.479,2934.5,2934.4,0.003]
[1765960102846,1.48238023,2934.5,2934.4,0.003]
[1765960103365,6.92974122,2934.5,2934.4,0.003]
[1765960103752,10.33747677,2934.5,2934.4,0.003]
[1765960104349,0.8228,2934.0,2933.9,1.59327653]
[1765960104664,0.6222,2933.8,2933.7,1.625]
[1765960104877,0.4148,2933.4,2933.3,0.7412699]
[1765960105031,0.4148,2933.4,2932.3,3.41021642]
[1765960105032,0.4817,2932.6,2932.3,3.41021642]
[1765960105232,0.4817,2932.6,2931.4,3.4113103]
[1765960105233,0.481,2932.5,2932.4,3.41006645]
[1765960105428,0.2,2932.8,2932.0,3.41061171]
[1765960105632,0.4168,2932.1,2931.7,6.82198042]
[1765960105828,0.4757,2932.6,2931.7,10.23297063]
[1765960106062,0.4757,2932.6,2931.7,6.82198042]
[1765960106432,0.4757,2932.6,2931.7,10.23297063]
[1765960106759,0.2,2932.8,2931.8,0.4686]
[1765960106931,0.2,2932.8,2931.9,0.54]
[1765960107130,0.2,2932.8,2932.1,0.6468]
[1765960107344,0.2,2933.2,2932.2,0.4686]
[1765960107548,0.2,2933.2,2932.4,0.4686]
[1765960107549,0.4757,2933.1,2932.4,0.4686]
[1765960107743,0.4757,2933.1,2932.4,6.82035192]
[1765960107943,0.4757,2933.1,2932.4,3.41017596]
[1765960108144,0.8965,2932.5,2932.4,3.41017596]
[1765960108377,0.4751,2932.4,2932.3,3.41026465]
[1765960108736,0.422,2932.7,2932.3,6.82055691]
[1765960109279,0.4746,2932.4,2932.3,3.41026465]
[1765960109440,0.4225,2932.7,2932.3,6.82055691]
[1765960109853,0.4741,2932.3,2932.2,3.41035035]
[1765960110638,0.8971,2932.3,2932.2,3.41035035]
[1765960111270,0.423,2932.5,2932.2,6.82075891]
[1765960111562,0.4757,2933.0,2932.2,10.23116747]
[1765960111766,0.4757,2933.0,2932.2,10.77216747]
[1765960111935,0.4214,2932.3,2932.2,7.36175891]
[1765960112137,0.4757,2933.1,2932.2,10.77216747]
[1765960112551,0.4757,2933.1,2932.2,10.23116747]
[1765960112753,0.4757,2933.1,2932.2,6.82075891]
[1765960113464,0.4757,2933.1,2932.2,10.23116747]
[1765960114083,0.4214,2932.3,2932.2,3.41035035]
[1765960114248,0.2,2933.2,2932.2,10.69066747]
[1765960114451,0.4116,2932.3,2932.2,3.95135035]
[1765960115078,0.4856,2933.1,2932.2,10.69066747]
[1765960115277,0.4856,2933.1,2932.3,1.14185675]
[1765960115480,0.4856,2933.1,2932.2,10.23116747]
[1765960115642,0.4856,2933.1,2932.2,6.82075891]
[1765960115844,0.4116,2932.3,2932.2,3.41035035]
[1765960116770,0.4116,2932.3,2932.1,0.543]
[1765960116771,0.0268,2932.2,2932.1,0.002]
[1765960116939,0.95398023,2932.2,2932.1,0.002]
[1765960117137,0.95398023,2932.2,2931.0,0.002]
[1765960117138,0.5882,2931.9,2931.0,0.002]
[1765960117355,0.4628,2932.3,2931.8,6.82374772]
[1765960117752,0.413,2931.9,2931.8,3.41287386]
[1765960117969,0.4628,2932.3,2931.8,0.002]
[1765960120182,0.4628,2932.7,2931.8,10.23462158]
[1765960120383,0.4628,2932.7,2931.9,0.4897]
[1765960120675,0.1805,2933.0,2932.1,0.6815]
[1765960120676,0.6433,2933.0,2932.1,0.6815]
[1765960120856,0.4628,2932.9,2932.1,1.2235]
[1765960121395,0.742,2933.2,2932.2,0.4897]
[1765960121543,0.586004,2933.4,2932.3,5.93706099]
[1765960121748,0.4628,2933.4,2932.5,0.4897]
[1765960121962,0.4628,2933.4,2932.6,0.542]
[1765960122156,0.4628,2933.4,2932.7,6.81965424]
[1765960122365,0.4628,2933.4,2932.7,10.22948136]
[1765960122567,0.4628,2933.4,2932.7,6.81965424]
[1765960123259,0.4628,2933.4,2932.7,10.22948136]
[1765960123459,0.4628,2933.4,2932.7,11.7963295]
[1765960123793,0.4628,2933.6,2932.8,0.4897]
[1765960124076,0.1398,2933.8,2932.8,0.4897]
[1765960124245,0.1398,2933.8,2932.9,10.71848377]
[1765960124449,0.4628,2933.7,2933.0,0.542]
[1765960124666,0.1398,2933.8,2933.1,0.6798]
[1765960125064,0.1398,2933.8,2933.0,1.12604838]
[1765960125382,0.8946,2933.2,2933.1,0.542]
[1765960125582,0.4322,2933.2,2933.1,0.542]
[1765960125949,0.4322,2933.2,2932.9,6.81918918]
[1765960126175,0.4322,2933.2,2932.9,7.36118918]
[1765960126381,0.8946,2933.2,2932.9,7.36118918]
[1765960126588,0.4322,2933.2,2932.9,7.36118918]
[1765960127152,0.6026,2933.8,2932.9,12.49425068]
[1765960127383,0.1805,2934.0,2933.2,0.4897]
[1765960127585,0.6433,2934.0,2933.2,0.4897]
[1765960127783,0.4628,2933.9,2933.2,0.4897]
[1765960127985,0.4628,2933.9,2932.9,11.46255068]
[1765960128172,0.3918,2933.1,2933.0,3.95147834]
[1765960128577,0.462,2933.4,2933.0,7.34510268]
[1765960129176,0.1805,2934.0,2933.2,0.4897]
[1765960129373,0.4628,2933.9,2933.0,10.22843502]
[1765960129589,0.3918,2933.3,2933.0,6.81895668]
[1765960129791,0.8538,2933.3,2933.0,6.81895668]
[1765960130092,0.3918,2933.3,2933.0,6.81895668]
[1765960130586,0.1805,2934.0,2933.0,10.71813502]
[1765960130779,0.4628,2933.9,2933.0,10.71813502]
[1765960131177,0.4628,2933.9,2933.1,0.6815]
[1765960131730,0.1805,2934.0,2933.2,0.4897]
[1765960131896,0.71769866,2934.4,2933.4,0.4897]
[1765960132081,0.001,2933.9,2933.8,0.9615]
[1765960132462,0.001,2933.9,2933.8,4.37004863]
[1765960133592,0.001,2933.9,2933.8,3.88034863]
[1765960133994,0.001,2933.9,2933.8,4.37004863]
[1765960134695,0.001,2933.9,2933.8,4.40413411]
[1765960134902,0.001,2933.9,2933.8,18.90763822]
[1765960135078,0.001,2933.9,2933.8,17.09029474]
[1765960135274,0.001,2933.9,2933.8,15.61059474]
[1765960137666,1.0048,2935.9,2934.3,23.535275]
[1765960137911,0.4628,2935.9,2934.9,0.4897]
[1765960138069,0.4628,2935.9,2935.0,0.542]
[1765960138396,0.4628,2935.8,2934.6,0.49997714]
[1765960138599,0.0142686,2935.0,2934.9,0.4718]
[1765960139172,0.0142686,2935.0,2934.9,0.9615]
[1765960140369,0.0142686,2935.0,2934.9,6.41979608]
[1765960140609,0.0142686,2935.0,2934.9,11.20472424]
[1765960140779,0.0142686,2935.0,2934.9,11.66910447]
[1765960141573,0.0152686,2935.0,2934.9,11.66910447]
[1765960142808,0.001,2936.2,2935.2,0.4897]
[1765960143014,0.4638,2936.2,2935.3,0.55127714]
[1765960143422,0.4638,2936.2,2935.4,0.541]
[1765960144120,0.001,2936.2,2935.5,0.4897]
[1765960144415,0.4614,2936.2,2935.1,0.01027714]
[1765960144595,0.4614,2936.2,2935.3,6.81361358]
[1765960144793,0.186,2935.9,2935.3,10.22042037]
[1765960145010,0.186,2935.9,2935.4,0.541]
[1765960145205,0.6464,2935.9,2935.4,0.541]
[1765960145392,0.186,2935.9,2935.4,0.541]
[1765960145588,0.4604,2936.1,2935.4,0.541]
[1765960146008,0.4604,2936.1,2935.3,6.81361358]
[1765960146207,0.4604,2936.1,2935.4,0.541]
[1765960146788,0.4604,2936.1,2935.5,3.40657468]
[1765960146989,0.4604,2935.8,2935.5,6.81314936]
[1765960147323,0.8484,2935.6,2935.5,3.40657468]
[1765960147498,0.8484,2935.6,2935.5,3.94757468]
[1765960147699,0.3887,2935.6,2935.5,3.94757468]
[1765960148619,0.4614,2936.2,2935.5,10.21972404]
[1765960148925,0.4614,2936.2,2936.1,0.465]
[1765960148926,0.001,2936.2,2936.1,0.465]
[1765960149131,0.001,2936.2,2936.1,1.006]
[1765960149691,0.001,2936.2,2936.1,1.1529]
[1765960150036,0.001,2936.2,2936.1,1.6939]
[1765960150615,0.001,2936.2,2936.1,1.2056]
[1765960150912,0.001,2936.2,2936.1,4.41187854]
[1765960153006,0.4559,2936.1,2936.0,0.541]
[1765960153517,0.001,2936.2,2936.1,3.87087854]
[1765960153695,0.3842,2936.2,2936.1,0.541]
[1765960153899,0.3842,2936.2,2936.1,3.94687854]
[1765960154111,0.3842,2936.2,2936.1,0.541]
[1765960155096,0.3842,2936.2,2936.1,3.94687854]
[1765960155412,0.001,2936.2,2936.1,4.41187854]
[1765960155621,0.001,2936.2,2936.1,4.90017854]
[1765960155805,0.001,2936.2,2936.1,4.41187854]
[1765960156410,0.001,2936.2,2936.1,4.90017854]
[1765960157493,0.001,2936.2,2936.1,4.91045568]
[1765960158494,0.001,2936.2,2936.1,5.74210057]
[1765960158690,0.001,2936.2,2936.1,6.24053958]
[1765960158908,0.001,2936.2,2936.1,6.2064808]
[1765960159428,0.001,2936.2,2936.1,29.89117358]
[1765960159623,0.001,2937.2,2937.1,0.6592]
[1765960159830,0.001,2937.2,2937.1,1.6885]
[1765960161399,0.001,2937.2,2937.1,5.09321894]
[1765960163214,0.001,2937.2,2937.1,4.60491894]
[1765960163415,0.001,2937.2,2937.1,4.06391894]
[1765960163747,0.001,2937.2,2937.1,4.41071894]
[1765960164297,0.001,2937.2,2937.1,3.94571894]
[1765960164732,0.001,2937.2,2937.1,4.41071894]
[1765960164929,0.3788,2937.2,2937.1,3.40471894]
[1765960165236,0.001,2937.2,2937.1,3.86971894]
[1765960165406,0.001,2937.2,2937.1,4.35801894]
[1765960166846,0.001,2937.2,2937.1,3.86971894]
[1765960167050,0.4562,2937.2,2937.1,0.541]
[1765960167251,0.4562,2937.2,2937.1,3.94571894]
[1765960167447,0.001,2937.2,2937.1,3.94571894]
[1765960168554,0.4562,2937.2,2936.8,7.29843346]
[1765960168719,0.383,2936.9,2936.7,3.40514008]
[1765960168925,0.001,2937.2,2936.1,0.1996]
[1765960168926,0.4649,2936.8,2936.1,0.1996]
[1765960169146,0.4649,2936.8,2936.2,0.541]
[1765960169147,0.3733,2936.5,2936.2,0.541]
[1765960169327,0.0082,2936.4,2936.3,3.40558448]
[1765960169530,0.0082,2936.4,2935.9,0.4883]
[1765960169726,0.0082,2936.4,2936.2,3.40568938]
[1765960169925,0.0082,2936.4,2936.1,3.40587281]
[1765960170163,0.3696,2936.3,2936.2,3.4057229]
[1765960170658,0.46438023,2937.0,2936.2,7.27648545]
[1765960170825,0.4604,2936.8,2936.2,7.27648545]
[1765960171443,0.0038,2936.2,2935.7,0.541]
[1765960171642,0.0038,2936.2,2935.7,1.0293]
[1765960171847,0.0038,2936.2,2936.1,3.40587854]
[1765960172041,0.0038,2936.2,2936.0,3.40590841]
[1765960172242,0.0038,2936.2,2936.1,3.40587854]
[1765960172734,0.0038,2936.2,2935.8,7.30075316]
[1765960173050,0.0038,2936.2,2935.8,6.81245316]
[1765960173754,0.4642,2936.2,2935.8,6.81245316]
[1765960174049,0.4642,2936.2,2936.1,0.002]
[1765960174427,1.33408423,2936.2,2936.1,0.002]
[1765960174624,0.146,2935.9,2935.0,0.002]
[1765960174922,0.4737,2935.1,2935.0,0.002]
[1765960180185,3.88073894,2935.1,2935.0,0.002]
[1765960180355,0.4737,2935.1,2935.0,0.002]
[1765960182382,3.88073894,2935.1,2935.0,0.002]
[1765960182676,4.60949477,2935.1,2935.0,0.002]
[1765960191837,0.1807,2934.9,2934.1,0.1855]
[1765960192003,0.6424,2934.9,2934.2,0.4758]
[1765960192506,0.4617,2934.8,2934.2,0.4758]
[1765960193785,0.4617,2934.8,2934.2,3.40808397]
[1765960194214,0.9226,2934.2,2934.1,3.4081483]
[1765960194570,0.4671,2934.2,2934.1,3.4081483]
[1765960195479,0.4555,2934.5,2934.1,6.81634842]
[1765960196397,0.4555,2934.5,2934.1,3.4081483]
[1765960196827,0.1807,2934.9,2934.1,3.4081483]
[1765960197012,0.4617,2934.8,2934.1,7.47764842]
[1765960197183,0.4617,2934.8,2934.1,6.81634842]
[1765960197576,0.0046,2934.1,2934.0,0.002]
[1765960197774,0.4663,2934.1,2934.0,0.002]
[1765960200825,0.4617,2934.6,2934.0,0.002]
[1765960200984,0.4671,2934.1,2934.0,0.002]
[1765960201182,0.4617,2934.7,2934.1,0.1855]
[1765960201402,0.92608023,2934.7,2934.1,0.1855]
[1765960201591,0.43334696,2934.6,2934.1,0.1855]
[1765960201797,0.92608023,2934.8,2934.1,0.6613]
[1765960202093,0.1807,2934.9,2934.2,0.541]
[1765960202399,0.1807,2935.1,2934.3,0.4758]
[1765960202608,0.9226,2934.5,2934.0,0.543]
[1765960202792,0.4627,2935.0,2934.3,3.40791505]
[1765960202996,0.4617,2934.9,2934.3,3.40791505]
[1765960203627,0.4617,2934.9,2934.3,6.81588287]
[1765960205003,0.001,2935.0,2934.4,0.4578]
[1765960205332,0.9223,2934.4,2934.3,3.94891505]
[1765960205532,0.4274,2934.1,2934.0,3.41028802]
[1765960205707,0.4322,2934.3,2934.2,0.541]
[1765960205909,0.9223,2934.3,2934.2,0.541]
[1765960206440,0.0049,2934.2,2934.1,0.541]
[1765960206900,0.0049,2934.2,2934.1,3.94920012]
[1765960207531,3.40816684,2935.0,2934.2,0.4578]
[1765960207532,0.001,2935.0,2934.2,0.4578]
[1765960207695,0.4923,2935.0,2934.2,0.4578]
[1765960209031,3.89949819,2935.0,2934.3,6.81593564]
[1765960209220,0.4923,2935.0,2934.3,6.81593564]
[1765960209421,0.38993902,2934.9,2934.3,6.81593564]
[1765960209605,0.4316,2934.4,2934.3,3.40796782]
[1765960209812,0.4316,2934.4,2934.3,3.94896782]
[1765960210128,0.38993902,2934.9,2934.3,4.39976782]
[1765960210329,0.88123902,2934.9,2934.3,4.39976782]
[1765960210635,0.4923,2935.0,2934.3,7.80773564]
[1765960210939,0.001,2935.0,2934.5,3.40773555]
[1765960211240,0.001,2935.0,2934.9,0.9086]
[1765960211425,0.001,2935.0,2934.9,1.4496]
[1765960211831,0.001,2935.0,2934.9,7.35752063]
[1765960212146,0.001,2935.0,2934.9,8.09327269]
[1765960212519,0.001,2935.0,2934.6,0.4578]
[1765960212837,0.001,2935.0,2934.9,0.4508]
[1765960213137,0.001,2935.0,2934.9,3.85807111]
[1765960213435,0.001,2935.0,2934.9,4.39907111]
[1765960214420,0.001,2935.0,2934.9,4.85687111]
[1765960216851,0.001,2935.0,2934.9,5.68329691]
[1765960218159,0.001,2935.0,2934.9,5.22549691]
[1765960218458,0.001,2935.0,2934.9,3.85807111]
[1765960218617,0.001,2935.0,2934.9,4.39907111]
[1765960219631,0.001,2935.0,2934.9,3.85807111]
[1765960219846,0.001,2935.0,2934.9,4.39907111]
[1765960220051,0.001,2935.0,2934.9,4.85687111]
[1765960220432,0.001,2935.0,2934.9,5.68329691]
[1765960220635,0.001,2935.0,2934.9,6.14767714]
[1765960220826,0.001,2935.0,2934.9,6.15795428]
[1765960221893,0.001,2935.0,2934.9,6.14767714]
[1765960222658,0.001,2935.0,2934.9,6.15795428]